bitfinex/quotes_ETHUSD_20260307
["timestamp","ask_amount","ask_price","bid_price","bid_amount"]
[1772908164444,1.76122869,1973.6,1973.5,0.0011]
[1772908166147,0.49350798,1973.5,1973.4,0.0011]
[1772908166767,1.76035707,1973.4,1973.3,0.0011]
[1772908174374,1.76035707,1973.4,1973.2,0.0011]
[1772908176147,0.46331155,1973.5,1973.2,0.0011]
[1772908178078,0.46331155,1973.5,1973.2,0.45172548]
[1772908178377,0.46231155,1973.4,1973.2,0.0011]
[1772908180176,1.26691329,1973.3,1973.2,0.0011]
[1772908182180,0.001,1973.5,1973.2,0.0011]
[1772908182367,0.001,1973.5,1973.2,0.45172548]
[1772908183087,0.46331155,1973.5,1973.2,0.45172548]
[1772908184452,1.73009942,1973.5,1973.2,0.45172548]
[1772908184652,1.73009743,1973.5,1973.2,0.45172548]
[1772908185508,1.73009743,1973.5,1973.3,0.0011]
[1772908186011,0.001,1973.4,1973.3,0.0011]
[1772908189806,0.001,1973.4,1973.3,0.45172548]
[1772908190384,0.001,1973.6,1973.4,0.45062548]
[1772908190584,1.26759235,1973.8,1973.4,0.45062548]
[1772908190784,1.7299039,1973.8,1973.4,0.45062548]
[1772908192520,0.46331155,1973.8,1973.4,0.45062548]
[1772908193590,0.46331155,1973.8,1973.5,0.45062548]
[1772908194716,1.72994472,1973.8,1973.5,0.45062548]
[1772908195301,0.46331155,1973.8,1973.5,0.45062548]
[1772908195501,1.72990879,1973.8,1973.5,0.45062548]
[1772908196590,0.46231155,1974.1,1973.6,0.45062548]
[1772908196802,1.72871911,1974.1,1973.7,0.45062548]
[1772908197118,0.46231155,1974.1,1973.7,0.45062548]
[1772908197293,1.26629093,1974.3,1973.7,0.45062548]
[1772908197487,1.72860248,1974.3,1973.5,3.91633627]
[1772908197687,0.5,1974.4,1973.4,5.06688285]
[1772908197890,0.5,1974.4,1973.5,5.06688285]
[1772908198692,0.001,1973.7,1973.5,5.06688285]
[1772908198897,0.501,1974.7,1973.4,4.36476965]
[1772908201020,0.5,1974.5,1973.4,4.36476965]
[1772908202103,0.501,1974.7,1973.4,4.36476965]
[1772908202419,1.26702369,1974.7,1973.4,4.36476965]
[1772908202723,0.5,1974.6,1973.4,4.36476965]
[1772908204429,0.5,1974.5,1973.4,4.36476965]
[1772908205395,0.5,1974.4,1973.4,4.36476965]
[1772908208300,1.76618138,1974.5,1973.4,4.36476965]
[1772908208501,0.5,1974.4,1973.4,4.36476965]
[1772908210332,0.5,1974.3,1973.5,0.0011]
[1772908215632,0.5,1974.2,1973.5,0.0011]
[1772908217812,0.5,1974.0,1973.5,0.0011]
[1772908220047,0.501,1974.4,1973.5,0.0011]
[1772908220248,0.5,1974.3,1973.5,0.0011]
[1772908222251,0.5,1974.1,1973.6,0.0011]
[1772908230564,0.49868478,1974.2,1973.7,0.49287829]
[1772908230860,0.49868478,1974.2,1973.6,0.49397829]
[1772908237740,0.45830257,1974.1,1973.7,1.26665653]
[1772908239376,0.45830257,1974.1,1973.7,1.74729704]
[1772908246174,0.45830257,1974.1,1973.7,1.74839704]
[1772908246486,0.45930257,1974.1,1973.7,1.74839704]
[1772908247387,0.45830257,1974.0,1973.7,0.0011]
[1772908250192,0.45830257,1973.9,1973.7,0.0011]
[1772908251082,0.45830257,1973.8,1973.6,0.0011]
[1772908252498,1.26653245,1973.9,1973.6,0.0011]
[1772908252499,1.7249591,1973.7,1973.6,0.0011]
[1772908252993,1.7249591,1973.7,1973.4,0.0011]
[1772908252994,0.45830257,1973.6,1973.4,0.0011]
[1772908256192,0.45830257,1973.5,1973.4,0.0011]
[1772908260103,0.45830257,1973.5,1973.4,0.0022]
[1772908261351,1.72508746,1973.5,1973.4,0.0022]
[1772908261502,0.45830257,1973.4,1973.3,0.24651238]
[1772908267015,1.72515166,1973.4,1973.3,0.24651238]
[1772908267215,0.45830257,1973.4,1973.3,0.24651238]
[1772908267588,1.72515166,1973.4,1973.3,0.24651238]
[1772908269813,0.45830257,1973.4,1973.3,0.24651238]
[1772908270112,1.72515166,1973.4,1973.3,0.24651238]
[1772908270316,0.45830257,1973.4,1973.3,0.24651238]
[1772908270613,1.72515166,1973.4,1973.3,0.24651238]
[1772908270992,1.72615166,1973.4,1973.3,0.24651238]
[1772908273704,0.48271439,1973.3,1972.9,1.0901]
[1772908274510,0.48271439,1973.3,1972.9,1.11946779]
[1772908275718,0.4853161,1973.2,1972.9,1.0901]
[1772908276831,0.4853161,1973.2,1972.9,0.0011]
[1772908277718,0.4853161,1973.0,1972.9,0.0011]
[1772908279390,0.4853161,1973.0,1972.8,0.0011]
[1772908279595,0.4847661,1972.9,1972.8,0.0011]
[1772908281798,1.75193625,1972.9,1972.8,0.0011]
[1772908285547,1.75193625,1972.9,1972.6,0.01451223]
[1772908285548,0.4847661,1972.8,1972.6,0.01451223]
[1772908285710,0.4847661,1973.0,1972.6,0.04498002]
[1772908286024,0.4847661,1973.0,1972.7,0.03046779]
[1772908286534,0.4847661,1973.0,1972.6,0.04498002]
[1772908286716,0.4847661,1973.0,1972.6,0.01451223]
[1772908287119,0.4847661,1972.8,1972.6,0.01451223]
[1772908293129,0.4847661,1972.8,1972.6,0.0011]
[1772908293631,1.26713885,1973.0,1972.6,1.29892673]
[1772908293632,0.4847661,1973.0,1972.6,1.29892673]
[1772908294642,0.4847661,1973.0,1972.7,0.0011]
[1772908294833,0.4847661,1972.9,1972.7,0.0011]
[1772908296332,0.4847661,1972.9,1972.6,0.0011]
[1772908297959,0.4847661,1972.9,1972.6,0.03266779]
[1772908299840,0.4847661,1972.9,1972.6,0.0011]
[1772908300462,1.75193856,1972.9,1972.6,0.0011]
[1772908300664,0.4842161,1972.8,1972.6,0.0011]
[1772908301946,1.26715369,1973.0,1972.6,0.03266779]
[1772908302145,0.4842161,1972.9,1972.6,0.03266779]
[1772908304167,1.75141954,1972.9,1972.6,0.03266779]
[1772908305765,1.75141954,1972.9,1972.6,0.0011]
[1772908306163,1.75141954,1972.9,1972.7,0.0011]
[1772908306461,0.001,1972.8,1972.7,0.0011]
[1772908306667,0.4852161,1972.8,1972.7,0.0011]
[1772908309636,1.26823438,1972.8,1972.5,0.0011]
[1772908309841,0.4842161,1972.7,1972.5,0.0011]
[1772908310349,0.001,1973.1,1972.6,0.03266779]
[1772908310745,1.71876314,1973.1,1972.6,0.03266779]
[1772908311346,0.001,1973.1,1972.6,0.03266779]
[1772908312259,0.001,1973.1,1972.8,0.4863121]
[1772908314784,0.45171293,1973.1,1972.6,0.4863121]
[1772908314986,0.45171293,1973.1,1972.6,1.75366983]
[1772908315282,0.001,1973.1,1972.7,0.4863121]
[1772908317954,0.001,1973.1,1972.7,0.4874121]
[1772908318279,0.001,1973.0,1972.7,0.4874121]
[1772908320386,0.001,1973.0,1972.7,1.26839471]
[1772908320683,0.001,1973.0,1972.8,0.4863121]
[1772908324487,0.47068444,1973.0,1972.7,0.49399863]
[1772908325157,0.001,1973.0,1972.7,0.49399863]
[1772908325363,0.47068444,1973.4,1972.7,1.0931]
[1772908325689,0.47068444,1973.4,1972.9,0.49289863]
[1772908325690,0.001,1973.4,1972.9,0.49289863]
[1772908328278,0.001,1973.4,1973.1,0.49289863]
[1772908329574,0.47068444,1973.4,1972.8,1.76013301]
[1772908329778,0.47068444,1973.4,1972.7,2.8532553]
[1772908330355,0.46968444,1973.2,1972.7,2.8532553]
[1772908330573,0.46968444,1973.2,1972.9,0.0011]
[1772908334349,0.46968444,1973.2,1972.9,0.49399863]
[1772908334553,0.001,1973.3,1972.9,0.49399863]
[1772908337782,0.001,1973.3,1973.0,0.49289863]
[1772908337783,0.47068444,1973.3,1973.0,0.49289863]
[1772908342475,0.001,1973.3,1973.1,0.49289863]
[1772908343070,0.47068444,1973.3,1973.0,1.75999856]
[1772908343291,0.47068444,1973.3,1973.0,1.76109856]
[1772908343584,0.001,1973.2,1973.0,1.76109856]
[1772908343755,0.001,1973.2,1973.1,0.49289863]
[1772908343958,0.001,1973.3,1973.2,0.49289863]
[1772908345187,0.001,1973.3,1973.2,1.75987612]
[1772908355397,0.001,1973.3,1973.1,2.85166298]
[1772908355994,0.45216286,1973.3,1973.1,1.093]
[1772908356304,0.45216286,1973.3,1973.1,0.893]
[1772908358501,0.45216286,1973.3,1973.0,0.0011]
[1772908359101,0.001,1973.3,1973.1,0.49167085]
[1772908359684,0.001,1973.3,1973.2,1.26697749]
[1772908360519,0.001,1973.3,1973.1,1.75866255]
[1772908361697,0.001,1973.4,1973.2,0.49167085]
[1772908363887,0.001,1973.4,1973.2,1.7586008]
[1772908367513,0.001,1973.4,1973.3,0.0011]
[1772908368315,0.001,1973.4,1973.3,0.49277085]
[1772908369112,0.001,1973.4,1973.3,0.0011]
[1772908369307,0.001,1973.4,1973.2,0.0011]
[1772908369308,0.45216286,1973.4,1973.2,0.0011]
[1772908378037,0.45116286,1973.3,1973.2,0.0011]
[1772908378322,0.45116286,1973.3,1973.1,1.092]
[1772908380227,0.45216286,1973.3,1973.1,1.092]
[1772908380438,0.45216286,1973.3,1973.2,0.0011]
[1772908384933,0.4861032,1973.2,1973.0,0.0011]
[1772908387138,1.26791329,1973.3,1973.0,0.0011]
[1772908387139,0.4861032,1973.1,1973.0,0.0011]
[1772908393445,0.4861032,1973.1,1972.8,0.0011]
[1772908393446,1.75314491,1973.1,1972.8,0.0011]
[1772908393616,0.4861032,1973.0,1972.6,0.0011]
[1772908395212,0.4861032,1973.0,1972.6,1.26846009]
[1772908395414,0.4861032,1972.9,1972.6,0.0011]
[1772908399028,0.4861032,1972.8,1972.6,0.0011]
[1772908402150,0.4861032,1972.7,1972.6,0.0011]
[1772908404749,1.75340182,1972.7,1972.6,0.0011]
[1772908405247,0.4861032,1972.6,1972.4,0.0011]
[1772908406149,0.4861032,1972.5,1972.4,0.0011]
[1772908408431,1.75353032,1972.5,1972.4,0.0011]
[1772908410060,0.4861032,1972.4,1972.0,0.49909159]
[1772908410956,0.4861032,1972.5,1972.1,0.49909159]
[1772908415257,1.75356665,1972.5,1972.1,0.49909159]
[1772908415461,0.46567282,1972.4,1972.1,0.49909159]
[1772908415663,0.46567282,1972.4,1971.9,2.86852795]
[1772908416265,0.46567282,1972.4,1972.2,0.0011]
[1772908416637,0.46667282,1972.4,1972.2,0.0011]
[1772908416836,0.46667282,1972.4,1972.0,0.0011]
[1772908417570,0.46567282,1972.2,1972.0,0.0011]
[1772908419359,0.46567282,1972.1,1971.6,0.24380019]
[1772908419693,0.46567282,1971.9,1971.3,1.76692222]
[1772908420035,0.46567282,1971.9,1971.3,0.49875891]
[1772908420482,0.46567282,1971.9,1971.2,1.7680708]
[1772908420788,0.46567282,1971.9,1971.0,1.1071]
[1772908420789,0.46567282,1971.4,1971.0,0.49985891]
[1772908421083,0.46567282,1971.7,1971.1,0.49875891]
[1772908421442,0.46567282,1971.5,1971.1,0.49875891]
[1772908421943,0.46567282,1971.5,1971.0,1.76822984]
[1772908422548,0.46567282,1971.5,1971.0,0.0011]
[1772908423676,0.46567282,1971.3,1971.0,0.0011]
[1772908425655,0.46567282,1971.1,1971.0,0.0011]
[1772908427083,0.46567282,1971.1,1970.7,0.09438389]
[1772908428046,1.73400213,1971.1,1970.7,0.09438389]
[1772908428472,0.46567282,1971.0,1970.5,0.09438389]
[1772908429069,0.46567282,1971.0,1970.8,0.0011]
[1772908430154,0.46567282,1970.9,1970.3,1.36539104]
[1772908430355,0.46567282,1971.1,1970.4,0.09548389]
[1772908430955,1.2682529,1971.3,1970.4,0.09548389]
[1772908431301,0.46567282,1971.2,1970.4,0.09548389]
[1772908431879,0.46567282,1971.2,1970.4,1.092]
[1772908432098,0.46567282,1971.2,1970.5,0.09548389]
[1772908432594,0.46567282,1971.2,1970.6,1.26864914]
[1772908432887,0.46567282,1971.1,1970.4,1.26874665]
[1772908433059,0.46567282,1971.1,1970.5,0.09548389]
[1772908435458,0.46567282,1971.0,1970.5,1.26864962]
[1772908435982,0.46567282,1971.0,1970.5,1.36413351]
[1772908436392,0.46567282,1971.0,1970.6,0.09548389]
[1772908437573,0.46567282,1971.0,1970.7,0.09548389]
[1772908437890,0.46567282,1971.0,1970.6,1.36408825]
[1772908439563,0.46567282,1971.0,1970.7,0.09548389]
[1772908440580,0.46567282,1971.0,1970.6,1.26860436]
[1772908440792,0.46567282,1971.0,1970.6,1.36408825]
[1772908442090,0.46567282,1971.0,1970.7,0.0011]
[1772908442583,0.46667282,1971.0,1970.7,0.0011]
[1772908443690,0.89896971,1970.8,1969.5,0.29548389]
[1772908443870,1.26941841,1971.0,1969.5,0.29548389]
[1772908443871,0.46620884,1970.7,1969.5,0.29548389]
[1772908444070,0.46620884,1970.5,1969.5,0.29548389]
[1772908444270,0.46620884,1970.4,1969.7,0.29548389]
[1772908445184,0.46620884,1970.3,1969.7,0.29548389]
[1772908446289,0.46620884,1970.3,1969.8,1.56464827]
[1772908446469,0.46620884,1970.3,1969.9,1.39748389]
[1772908447767,0.5,1970.1,1969.2,1.26955108]
[1772908448072,5.38132868,1970.2,1969.1,5.28337848]
[1772908448073,0.5,1969.7,1969.1,1e-08]
[1772908448394,0.5,1969.4,1969.1,1e-08]
[1772908448886,0.5,1969.2,1969.1,1e-08]
[1772908449092,0.5,1969.5,1969.1,1e-08]
[1772908449263,0.5,1969.7,1969.1,1e-08]
[1772908449615,2.9885276,1969.6,1968.6,1.26993802]
[1772908449766,0.5,1969.2,1968.6,1.26993802]
[1772908450371,0.5,1969.2,1968.7,1.081]
[1772908450712,5.07756032,1969.5,1968.4,1.082]
[1772908450713,0.5,1969.1,1968.4,1.082]
[1772908451382,1.26955295,1969.2,1968.1,6.164974]
[1772908451383,2.98132861,1969.0,1968.1,6.164974]
[1772908451580,0.5,1969.0,1968.1,6.164974]
[1772908451966,0.5,1969.0,1968.1,1.084]
[1772908452163,0.5,1969.0,1968.0,2.5632789]
[1772908452400,0.5,1968.8,1968.0,2.5632789]
[1772908452608,0.5,1968.8,1968.1,1.087]
[1772908452890,0.5,1968.8,1968.1,1.08]
[1772908454183,0.5,1968.8,1967.4,0.21078016]
[1772908454386,1.76987352,1968.7,1967.5,2.33164803]
[1772908454591,0.5,1968.6,1967.6,1.058]
[1772908454894,0.5,1968.6,1968.2,0.0011]
[1772908455396,0.5,1968.6,1968.2,1.0551]
[1772908456398,1.27000254,1968.5,1968.2,1.0221]
[1772908457795,5.07954495,1968.7,1968.2,1.0221]
[1772908457992,0.5,1968.6,1968.2,0.0011]
[1772908458201,5.07954495,1968.7,1968.2,0.0011]
[1772908458406,1.26987352,1968.7,1968.2,0.0011]
[1772908459300,1.26983987,1968.8,1968.3,0.976]
[1772908459505,1.26972292,1969.0,1968.3,0.976]
[1772908459876,1.76972292,1969.0,1968.3,0.976]
[1772908461301,5.07855435,1969.1,1968.3,0.976]
[1772908461302,1.26942215,1969.4,1968.4,1.27006705]
[1772908461520,0.5,1969.3,1968.4,1.27006705]
[1772908461800,0.5,1969.3,1968.2,0.0011]
[1772908462000,0.5,1969.3,1968.3,1.007]
[1772908462300,0.5,1969.3,1968.2,1.27126373]
[1772908462500,0.5,1969.3,1968.3,1.006]
[1772908464036,1.76955108,1969.2,1968.4,1.27006705]
[1772908465221,9.53246785,1970.1,1968.4,1.27006705]
[1772908465222,3.25982262,1970.1,1968.4,1.27006705]
[1772908465518,0.5,1969.9,1968.5,0.065536]
[1772908465912,2.6401566,1970.1,1968.5,0.065536]
[1772908466211,2.6401566,1970.1,1968.6,1.26993802]
[1772908466373,0.5,1970.0,1968.6,1.26993802]
[1772908467402,0.001,1969.1,1968.7,0.065536]
[1772908467605,0.87115725,1970.1,1968.7,0.065536]
[1772908467817,0.5,1970.1,1968.7,0.065536]
[1772908468010,0.5,1970.1,1968.9,0.065536]
[1772908468210,0.5,1970.0,1969.0,1.26968004]
[1772908468414,1.76885902,1970.3,1969.0,1.26968004]
[1772908468615,1.26885902,1970.3,1969.0,1.26968004]
[1772908468808,0.5,1970.2,1969.0,1.26968004]
[1772908470225,0.5,1970.1,1969.0,1.26968004]
[1772908471032,0.5,1970.1,1969.1,1.025]
[1772908472241,0.5,1970.1,1969.2,1.26955108]
[1772908474933,1.26900339,1970.1,1969.2,1.26955108]
[1772908475131,0.5,1970.0,1969.2,1.26955108]
[1772908478052,0.5,1970.2,1969.2,1.26955108]
[1772908478952,0.5,1970.2,1969.2,1.27065108]
[1772908479244,0.001,1970.0,1969.2,1.27065108]
[1772908482553,0.501,1970.0,1969.3,1.081]
[1772908483275,0.501,1970.0,1969.4,1.26942215]
[1772908484071,0.501,1970.0,1969.5,1.085]
[1772908484755,7.46290329,1970.8,1969.5,1.085]
[1772908484756,0.5,1970.7,1969.5,1.085]
[1772908485073,0.5,1970.7,1969.6,1.087]
[1772908485270,0.5,1970.6,1969.7,1.26922881]
[1772908487958,0.5,1970.5,1969.8,1.093]
[1772908489634,0.5,1970.5,1969.9,1.26909995]
[1772908490783,0.5,1970.4,1969.9,1.26909995]
[1772908491080,0.5,1970.4,1970.0,1.097]
[1772908491880,0.5,1970.4,1970.1,1.26897111]
[1772908492380,0.5,1970.4,1970.2,1.099]
[1772908494243,0.5,1970.4,1970.2,2.36789174]
[1772908494677,0.5,1970.4,1970.1,1.26893012]
[1772908494885,0.5,1970.3,1969.4,1.26942215]
[1772908495076,0.5,1970.3,1969.5,1.101]
[1772908496368,0.5,1970.3,1969.6,1.26929325]
[1772908496574,0.5,1970.3,1969.7,0.47505912]
[1772908498762,0.5,1970.3,1969.9,0.47505912]
[1772908498959,0.001,1970.5,1970.1,0.47505912]
[1772908499168,0.47167082,1970.5,1970.1,0.47505912]
[1772908502086,0.45608147,1970.8,1970.2,1.2689067]
[1772908502256,3.00218183,1970.7,1970.3,0.48986352]
[1772908502455,0.45608147,1970.8,1970.3,0.48986352]
[1772908502677,3.49113781,1970.7,1970.3,0.48986352]
[1772908502877,0.001,1970.5,1970.3,0.48986352]
[1772908503453,0.48871712,1970.7,1970.3,0.45199602]
[1772908505598,0.001,1970.9,1970.5,0.45199602]
[1772908506163,0.48971712,1970.9,1970.6,1.108]
[1772908507695,0.41661206,1971.0,1970.7,1.26858476]
[1772908507881,0.001,1971.0,1970.8,0.45199602]
[1772908508795,0.41561206,1971.2,1970.8,0.45199602]
[1772908509605,3.41666242,1971.3,1970.8,0.45199602]
[1772908509773,0.41561206,1971.3,1970.9,1.72045205]
[1772908509989,0.41561206,1971.2,1970.8,1.26847761]
[1772908510295,0.41561206,1971.2,1970.9,1.109]
[1772908510668,0.41561206,1971.2,1970.9,1.56099602]
[1772908511963,0.41561206,1971.2,1971.0,1.26839167]
[1772908512184,3.00016667,1971.4,1971.1,0.91]
[1772908512388,0.21561206,1971.6,1971.1,1.36199602]
[1772908512687,3.21562332,1971.5,1971.2,0.45199602]
[1772908512896,0.21561206,1971.5,1971.2,0.45199602]
[1772908513081,1e-08,1971.5,1971.2,0.45199602]
[1772908513284,3.00023745,1971.6,1971.2,0.45199602]
[1772908513464,1.26777476,1972.0,1971.2,0.45199602]
[1772908513664,3.00010779,1971.9,1971.2,0.45199602]
[1772908513966,3.65639516,1972.1,1971.2,0.45199602]
[1772908513967,3.00010779,1971.8,1971.4,0.49999999]
[1772908514172,3.65638528,1972.1,1971.4,0.49999999]
[1772908514477,2.99925146,1972.0,1971.4,0.49999999]
[1772908514787,2.99925146,1971.9,1971.4,0.49999999]
[1772908514967,2.99925146,1971.8,1971.4,0.49999999]
[1772908515176,1.26771991,1972.1,1971.4,0.49999999]
[1772908515373,2.99737812,1972.0,1971.4,0.49999999]
[1772908515671,2.99737812,1971.9,1971.4,0.49999999]
[1772908515867,1.26771991,1972.1,1971.4,0.49999999]
[1772908516081,4.26519853,1972.0,1971.5,1.26806999]
[1772908516376,1.26772536,1972.1,1971.6,1.112]
[1772908516687,2.99590592,1972.0,1971.6,1.112]
[1772908518294,4.26366742,1972.0,1971.6,1.112]
[1772908518491,1.2677615,1972.0,1971.6,1.112]
[1772908518676,6.3,1972.3,1971.6,2.37997798]
[1772908518677,5.0702614,1972.3,1971.6,2.37997798]
[1772908518877,2.99335014,1972.2,1971.6,2.37997798]
[1772908519078,2.99335014,1972.1,1971.6,2.37997798]
[1772908519278,5.0702614,1972.3,1971.6,2.37997798]
[1772908519478,2.99237988,1972.2,1971.6,2.37997798]
[1772908519683,2.99237988,1972.2,1971.3,1.26815538]
[1772908519997,2.99237988,1972.2,1971.2,5.07303602]
[1772908519998,2.99237988,1972.1,1971.4,1.113]
[1772908520167,2.99237988,1972.0,1971.4,1.113]
[1772908520376,2.99237988,1971.9,1971.2,1.2681995]
[1772908520580,2.99237988,1971.8,1971.0,1.113]
[1772908520788,2.99237988,1971.7,1971.0,1.113]
[1772908520991,2.99237988,1971.6,1970.6,1.47034756]
[1772908521184,2.38866537,1971.7,1970.7,1.104]
[1772908521185,2.99237988,1971.5,1970.7,1.104]
[1772908521482,2.99237988,1971.4,1970.6,0.20171415]
[1772908521682,2.99237988,1971.3,1970.6,0.20171415]
[1772908521904,2.99237988,1971.2,1970.6,0.20171415]
[1772908522074,2.99237988,1971.1,1970.6,0.20171415]
[1772908522274,2.38866537,1971.4,1970.6,0.20171415]
[1772908522476,1.26826298,1971.2,1970.6,0.20171415]
[1772908522679,2.99089394,1971.1,1970.6,0.20171415]
[1772908524584,1.26839167,1971.0,1970.6,0.20171415]
[1772908526786,5.07305194,1971.3,1970.6,0.20171415]
[1772908527101,2.99293537,1971.2,1970.6,0.20171415]
[1772908527299,2.99293537,1971.2,1970.7,0.0011]
[1772908528819,1.26832732,1971.1,1970.7,0.0011]
[1772908528981,2.99293537,1971.0,1970.7,0.0011]
[1772908529799,2.99293537,1971.0,1970.7,0.81359999]
[1772908529999,1.26832732,1971.1,1970.7,0.81359999]
[1772908531020,1.26819865,1971.3,1970.7,0.81359999]
[1772908531323,2.9944173,1971.2,1970.7,0.81359999]
[1772908532820,2.9944173,1971.2,1970.8,0.81249999]
[1772908533007,1.26812155,1971.5,1970.8,0.81249999]
[1772908533207,2.99602792,1971.4,1971.0,0.81249999]
[1772908533396,2.99602792,1971.3,1971.0,0.81249999]
[1772908533596,5.07227998,1971.6,1971.0,0.81249999]
[1772908533797,2.99628784,1971.5,1970.7,0.0011]
[1772908534005,2.99628784,1971.4,1970.7,1.1061]
[1772908534203,2.99628784,1971.3,1970.7,1.91859999]
[1772908534404,2.99628784,1971.2,1970.7,1.91859999]
[1772908534605,2.38866537,1971.5,1970.7,1.91859999]
[1772908534826,2.99641653,1971.4,1970.7,1.91859999]
[1772908535025,2.99641653,1971.3,1970.7,1.91859999]
[1772908535325,2.99641653,1971.2,1970.7,1.91859999]
[1772908537497,1.26832732,1971.1,1970.7,1.91859999]
[1772908538225,5.0727946,1971.4,1970.8,0.81249999]
[1772908538226,1.26813432,1971.4,1970.8,0.81249999]
[1772908538426,2.99676283,1971.3,1970.7,1.1081]
[1772908538723,1.26813432,1971.4,1970.7,1.1081]
[1772908538724,2.99676283,1971.2,1970.7,1.92059999]
[1772908538928,2.99676283,1971.1,1970.7,1.92059999]
[1772908539154,1.26813432,1971.4,1970.7,1.92059999]
[1772908539334,2.99633799,1971.3,1970.7,1.92059999]
[1772908539532,1.26832732,1971.1,1970.7,1.1091]
[1772908539833,2.99624142,1971.0,1970.7,0.0011]
[1772908541129,1.26832732,1971.1,1970.7,0.81359999]
[1772908541332,1.26813432,1971.4,1970.7,0.81359999]
[1772908541534,1.26826298,1971.2,1970.9,0.81249999]
[1772908544336,1.26913432,1971.4,1970.9,0.81249999]
[1772908544538,2.99705103,1971.3,1970.9,0.81249999]
[1772908546140,4.26535101,1971.2,1970.9,0.81249999]
[1772908546334,1.26829998,1971.2,1970.9,0.81249999]
[1772908547141,3.00114466,1971.1,1970.9,0.81249999]
[1772908548220,1.26829998,1971.2,1970.9,0.81249999]
[1772908548421,3.00284076,1971.1,1970.9,0.81249999]
[1772908548624,1.26829998,1971.2,1970.9,0.81249999]
[1772908548942,3.00284227,1971.1,1970.9,0.81249999]
[1772908549143,3.00568905,1971.0,1970.9,0.81249999]
[1772908551945,3.00568905,1971.0,1970.8,0.81359999]
[1772908552241,3.00568905,1970.9,1970.8,0.81359999]
[1772908552448,3.00568905,1970.9,1970.8,1.92459999]
[1772908553316,3.00568905,1970.9,1970.8,0.81359999]
[1772908553516,3.00568905,1970.9,1970.8,1.92459999]
[1772908556846,3.00568905,1970.9,1970.8,0.0011]
[1772908557143,3.00568905,1970.9,1970.8,1.1121]
[1772908557661,4.27414508,1970.9,1970.8,0.0011]
[1772908557948,4.27414508,1970.9,1970.6,0.20171415]
[1772908558155,3.00568905,1970.8,1970.5,1.1091]
[1772908558320,3.00568905,1970.7,1970.5,1.1091]
[1772908558524,1.26845603,1970.9,1970.5,1.1091]
[1772908558723,3.00984936,1970.8,1970.5,1.1091]
[1772908558921,4.27847291,1970.7,1970.5,1.1091]
[1772908559156,1.26862355,1970.7,1970.5,1.1091]
[1772908560173,0.1875,1970.5,1970.2,1.1041]
[1772908560363,3.00894482,1970.4,1970.2,0.0011]
[1772908560532,0.1875,1970.5,1970.2,1.1051]
[1772908560734,3.00928347,1970.4,1970.2,0.0011]
[1772908561066,1.45627156,1970.5,1970.2,1.1051]
[1772908561265,3.00722474,1970.4,1970.2,1.1051]
[1772908561463,1.45627156,1970.5,1970.2,1.1051]
[1772908561635,3.00593423,1970.4,1970.2,1.1051]
[1772908561836,1.45627156,1970.5,1970.2,1.1051]
[1772908562155,3.0059344,1970.4,1970.2,1.1051]
[1772908562357,1.45627156,1970.5,1970.2,1.1051]
[1772908562553,0.1875,1970.3,1970.0,0.0011]
[1772908562866,3.19203708,1970.2,1970.0,0.0011]
[1772908563070,1.45643704,1970.2,1970.0,0.0011]
[1772908563245,0.1875,1970.2,1970.0,0.0011]
[1772908563445,1.26882374,1970.4,1970.0,0.45226012]
[1772908563645,2.38866537,1970.6,1970.0,0.45226012]
[1772908563646,3.00282673,1970.3,1970.0,0.45226012]
[1772908563960,0.1875,1970.5,1970.0,0.45226012]
[1772908564265,3.1903187,1970.4,1970.0,0.45226012]
[1772908564443,0.1875,1970.4,1970.0,0.45226012]
[1772908564769,3.18925796,1970.5,1970.0,0.45226012]
[1772908564969,3.00175796,1970.4,1970.0,0.45226012]
[1772908565274,3.00175796,1970.4,1970.1,0.45116012]
[1772908565656,1.4560935,1970.7,1970.1,0.45116012]
[1772908565858,3.00102897,1970.6,1970.1,0.45116012]
[1772908566179,3.00102897,1970.5,1970.1,0.45116012]
[1772908567584,3.00102897,1970.5,1970.2,0.45226012]
[1772908567783,0.001,1970.3,1970.2,0.45226012]
[1772908569980,0.001,1970.3,1970.2,1.72116682]
[1772908571776,0.001,1970.3,1970.2,0.0011]
[1772908572153,0.1885,1970.3,1970.2,0.0011]
[1772908573276,0.1885,1970.3,1970.0,0.0011]
[1772908573482,0.1885,1970.3,1970.0,0.45226012]
[1772908574180,0.001,1970.3,1970.1,0.45116012]
[1772908578300,0.001,1970.3,1970.1,1.72012705]
[1772908578491,2.99854186,1970.5,1970.3,0.45116012]
[1772908578693,1.45611117,1970.7,1970.3,0.45116012]
[1772908578694,1.26865506,1970.6,1970.3,0.45116012]
[1772908578896,2.99865526,1970.5,1970.3,0.45116012]
[1772908579804,1.45715311,1970.6,1970.3,0.45116012]
[1772908580006,2.99900126,1970.5,1970.3,0.45116012]
[1772908581702,4.45624495,1970.5,1970.2,0.45226012]
[1772908582007,0.1885,1970.5,1970.2,0.45226012]
[1772908583204,3.00148621,1970.4,1970.2,0.45226012]
[1772908583515,3.18998621,1970.4,1970.2,0.0011]
[1772908583722,0.1885,1970.3,1970.2,0.0011]
[1772908584006,0.1885,1970.4,1970.2,0.0011]
[1772908584383,1.45727221,1970.5,1970.2,0.0011]
[1772908584608,3.00257632,1970.4,1970.2,0.0011]
[1772908584812,1.45727221,1970.5,1970.2,0.0011]
[1772908585114,3.00257969,1970.4,1970.2,0.45226012]
[1772908585316,0.1885,1970.4,1970.2,0.0011]
[1772908586194,3.00506631,1970.3,1970.2,0.0011]
[1772908586390,2.38866537,1970.7,1970.2,0.0011]
[1772908586391,2.38866537,1970.7,1970.3,0.45116012]
[1772908586694,3.77374752,1970.9,1970.3,0.45116012]
[1772908586695,0.3885,1970.8,1970.3,0.45116012]
[1772908587402,0.3885,1970.8,1970.4,1.71993803]
[1772908587805,1.6570213,1970.8,1970.4,0.45116012]
[1772908588117,0.3885,1970.8,1970.4,0.45116012]
[1772908590219,0.3885,1970.6,1970.2,0.45226012]
[1772908590388,1.26858476,1970.7,1970.4,1.109]
[1772908590593,1.65708476,1970.7,1970.4,1.56016012]
[1772908590918,1.65808476,1970.7,1970.4,1.56016012]
[1772908593736,0.3885,1970.6,1970.2,0.0011]
[1772908594339,0.3885,1970.6,1970.3,0.48380915]
[1772908594838,1.65720922,1970.6,1970.3,0.48380915]